[Event "*** Titled Tuesday Blitz"]
[Site "Chess.com"]
[Date "2019.03.05"]
[Round "7"]
[White "wonderfultime"]
[Black "Alexander_Moskalenko"]
[Result "0-1"]
[WhiteElo "2905"]
[BlackElo "2773"]
[TimeControl "180+2"]
[EndTime "14:40:48 PST"]
[Termination "Alexander_Moskalenko won by resignation"]

1. d4 {[%clk 0:02:57.4]} 1... Nf6 {[%clk 0:03:01.9]} 2. Nf3 {[%clk 0:02:58.3]}
2... g6 {[%clk 0:03:02.6]} 3. g3 {[%clk 0:02:58.4]} 3... Bg7 {[%clk 0:03:03.1]}
4. Bg2 {[%clk 0:02:59.9]} 4... O-O {[%clk 0:03:01.9]} 5. O-O {[%clk 0:03:01.5]}
5... d5 {[%clk 0:03:03.8]} 6. c4 {[%clk 0:03:02.6]} 6... c6 {[%clk 0:03:03.8]}
7. cxd5 {[%clk 0:03:00.8]} 7... cxd5 {[%clk 0:03:03.6]} 8. Nc3 {[%clk
0:03:02.4]} 8... Nc6 {[%clk 0:03:05.1]} 9. Ne5 {[%clk 0:03:03.3]} 9... Qb6
{[%clk 0:02:44.3]} 10. Na4 {[%clk 0:02:53.8]} 10... Qb5 {[%clk 0:02:37.4]} 11.
Nxc6 {[%clk 0:02:21]} 11... bxc6 {[%clk 0:02:38.2]} 12. Re1 {[%clk 0:02:11.7]}
12... Bf5 {[%clk 0:02:38.9]} 13. b3 {[%clk 0:02:09.6]} 13... Rfe8 {[%clk
0:02:24.1]} 14. Bb2 {[%clk 0:02:08.7]} 14... Nd7 {[%clk 0:02:09.2]} 15. Rc1
{[%clk 0:02:09.4]} 15... Rac8 {[%clk 0:01:56.3]} 16. Qd2 {[%clk 0:02:09.8]}
16... Bf6 {[%clk 0:01:44.5]} 17. Nc5 {[%clk 0:02:06.7]} 17... Nxc5 {[%clk
0:01:40.4]} 18. Rxc5 {[%clk 0:02:08.6]} 18... Qb6 {[%clk 0:01:42]} 19. Rec1
{[%clk 0:02:08.8]} 19... Bd7 {[%clk 0:01:23.6]} 20. e3 {[%clk 0:01:42.8]} 20...
e6 {[%clk 0:01:22.9]} 21. Bf1 {[%clk 0:01:43.3]} 21... Be7 {[%clk 0:01:21.9]}
22. R5c2 {[%clk 0:01:44.3]} 22... a5 {[%clk 0:01:17.7]} 23. Bd3 {[%clk
0:01:33.9]} 23... Ra8 {[%clk 0:01:18.5]} 24. Bc3 {[%clk 0:01:26.8]} 24... Bb4
{[%clk 0:01:18.4]} 25. Qe2 {[%clk 0:01:21.8]} 25... Reb8 {[%clk 0:01:18.5]} 26.
h4 {[%clk 0:01:21.4]} 26... h5 {[%clk 0:01:13.9]} 27. Qf3 {[%clk 0:01:22.3]}
27... Qd8 {[%clk 0:01:10.5]} 28. e4 {[%clk 0:01:17.5]} 28... a4 {[%clk
0:01:08.6]} 29. Ba1 {[%clk 0:00:40.1]} 29... axb3 {[%clk 0:01:09.3]} 30. axb3
{[%clk 0:00:42]} 30... Bf8 {[%clk 0:01:10.8]} 31. Rb1 {[%clk 0:00:36]} 31... Ra3
{[%clk 0:01:09.1]} 32. exd5 {[%clk 0:00:28.1]} 32... cxd5 {[%clk 0:01:09.8]} 33.
Bf1 {[%clk 0:00:28]} 33... Qb6 {[%clk 0:01:05.6]} 34. Qf4 {[%clk 0:00:24.9]}
34... Bd6 {[%clk 0:00:57.5]} 35. Qg5 {[%clk 0:00:26.1]} 35... Bb5 {[%clk
0:00:45.1]} 36. Bxb5 {[%clk 0:00:16.1]} 36... Qxb5 {[%clk 0:00:47]} 37. Kg2
{[%clk 0:00:11.6]} 37... Kg7 {[%clk 0:00:46.7]} 38. b4 {[%clk 0:00:11]} 38...
Qd3 {[%clk 0:00:44.1]} 39. Qd2 {[%clk 0:00:09.5]} 39... Qe4+ {[%clk 0:00:22.6]}
40. Kg1 {[%clk 0:00:09.5]} 40... Bxg3 {[%clk 0:00:23.5]} 41. fxg3 {[%clk
0:00:05.2]} 41... Rxg3+ {[%clk 0:00:23.7]} 42. Kf1 {[%clk 0:00:06.8]} 42... Rf3+
{[%clk 0:00:25]} 43. Kg1 {[%clk 0:00:07.6]} 43... Qg4+ {[%clk 0:00:26]} 44. Qg2
{[%clk 0:00:05.1]} 44... Rg3 {[%clk 0:00:27.3]} 45. Rf1 {[%clk 0:00:06.2]} 45...
Rxg2+ {[%clk 0:00:27]} 46. Rxg2 {[%clk 0:00:08.1]} 46... Qxh4 {[%clk 0:00:28.6]}
47. Bc3 {[%clk 0:00:09.3]} 47... Qh3 {[%clk 0:00:29.3]} 48. Bd2 {[%clk
0:00:09.5]} 48... Qd3 {[%clk 0:00:28.2]} 49. Rgf2 {[%clk 0:00:08.2]} 49... Qxd4
{[%clk 0:00:28.3]} 50. Kh1 {[%clk 0:00:09.6]} 50... Qe4+ {[%clk 0:00:28.1]} 51.
Kh2 {[%clk 0:00:10.5]} 51... Rb7 {[%clk 0:00:28.1]} 52. Bg5 {[%clk 0:00:10.6]}
52... Qxb4 {[%clk 0:00:26.2]} 53. Bf6+ {[%clk 0:00:11.6]} 53... Kh7 {[%clk
0:00:27.7]} 54. Be5 {[%clk 0:00:12.7]} 54... Qh4+ {[%clk 0:00:27.2]} 55. Kg2
{[%clk 0:00:09.4]} 55... Qg5+ {[%clk 0:00:28.7]} 56. Bg3 {[%clk 0:00:10.8]}
56... h4 {[%clk 0:00:25.2]} 57. Rh1 {[%clk 0:00:11]} 0-1

[Event "*** Titled Tuesday Blitz"]
[Site "Chess.com"]
[Date "2019.03.05"]
[Round "7"]
[White "Witik"]
[Black "Sanan_Sjugirov"]
[Result "1/2-1/2"]
[WhiteElo "2683"]
[BlackElo "2887"]
[TimeControl "180+2"]
[EndTime "14:41:04 PST"]
[Termination "Game drawn by agreement"]

1. d4 {[%clk 0:03:01.9]} 1... Nf6 {[%clk 0:03:01.1]} 2. c4 {[%clk 0:03:02.8]}
2... g6 {[%clk 0:03:01.8]} 3. Nc3 {[%clk 0:03:03.6]} 3... d5 {[%clk 0:03:03]} 4.
cxd5 {[%clk 0:03:05]} 4... Nxd5 {[%clk 0:03:04.9]} 5. e4 {[%clk 0:03:06.9]} 5...
Nxc3 {[%clk 0:03:06.2]} 6. bxc3 {[%clk 0:03:08.8]} 6... Bg7 {[%clk 0:03:07.7]}
7. Bg5 {[%clk 0:03:10.4]} 7... O-O {[%clk 0:03:03.7]} 8. Nf3 {[%clk 0:03:11.3]}
8... c5 {[%clk 0:03:03.5]} 9. Rc1 {[%clk 0:03:12.2]} 9... Bg4 {[%clk 0:02:38.9]}
10. d5 {[%clk 0:03:11]} 10... Nd7 {[%clk 0:02:30]} 11. Be2 {[%clk 0:03:08.7]}
11... h6 {[%clk 0:02:24.4]} 12. Bh4 {[%clk 0:03:08.3]} 12... Re8 {[%clk
0:02:08.7]} 13. O-O {[%clk 0:03:06.5]} 13... Qa5 {[%clk 0:02:08.1]} 14. Qb3
{[%clk 0:02:44.8]} 14... Bxf3 {[%clk 0:01:33.5]} 15. gxf3 {[%clk 0:02:38.1]}
15... Qc7 {[%clk 0:01:33.6]} 16. Bb5 {[%clk 0:02:27.3]} 16... Be5 {[%clk
0:01:29.9]} 17. Bg3 {[%clk 0:02:27]} 17... Red8 {[%clk 0:01:22.2]} 18. Bxd7
{[%clk 0:02:05.5]} 18... Rxd7 {[%clk 0:01:24.1]} 19. c4 {[%clk 0:02:06.2]} 19...
Bf4 {[%clk 0:01:15]} 20. Rb1 {[%clk 0:02:03.2]} 20... Qe5 {[%clk 0:01:09]} 21.
Qa4 {[%clk 0:01:58.8]} 21... Rc7 {[%clk 0:01:05.2]} 22. Rfd1 {[%clk 0:01:53]}
22... h5 {[%clk 0:00:56.6]} 23. Kg2 {[%clk 0:01:49.1]} 23... Qf6 {[%clk
0:00:39.8]} 24. h4 {[%clk 0:01:37.5]} 24... Kh7 {[%clk 0:00:27.4]} 25. Re1
{[%clk 0:01:23.3]} 25... Qe5 {[%clk 0:00:27]} 26. Qa3 {[%clk 0:01:09]} 26... Rg8
{[%clk 0:00:22.9]} 27. Rh1 {[%clk 0:00:41]} 27... b6 {[%clk 0:00:20.8]} 28. Qe3
{[%clk 0:00:29.4]} 28... Bxg3 {[%clk 0:00:19.2]} 29. fxg3 {[%clk 0:00:30.4]}
29... Rd7 {[%clk 0:00:14.7]} 30. f4 {[%clk 0:00:31.6]} 30... Qf6 {[%clk
0:00:16.1]} 31. Rhf1 {[%clk 0:00:26.7]} 31... Rb8 {[%clk 0:00:13.7]} 32. Qd3
{[%clk 0:00:27.6]} 32... e6 {[%clk 0:00:11.3]} 33. a4 {[%clk 0:00:26.9]} 33...
exd5 {[%clk 0:00:12]} 34. cxd5 {[%clk 0:00:28.1]} 34... Rbd8 {[%clk 0:00:12.4]}
35. Rbd1 {[%clk 0:00:26.7]} 35... Qb2+ {[%clk 0:00:11.8]} 36. Rf2 {[%clk
0:00:27.3]} 36... Qb4 {[%clk 0:00:12.2]} 37. Qf3 {[%clk 0:00:25.5]} 37... c4
{[%clk 0:00:11.6]} 38. e5 {[%clk 0:00:26.8]} 38... c3 {[%clk 0:00:11.9]} 39. d6
{[%clk 0:00:25.8]} 39... Rc8 {[%clk 0:00:12.9]} 40. f5 {[%clk 0:00:25.2]} 40...
c2 {[%clk 0:00:11.8]} 41. Rc1 {[%clk 0:00:26.5]} 41... Qb2 {[%clk 0:00:09.6]}
42. fxg6+ {[%clk 0:00:18.7]} 42... fxg6 {[%clk 0:00:11.5]} 43. e6 {[%clk
0:00:20]} 43... Rxd6 {[%clk 0:00:08.5]} 44. Qf7+ {[%clk 0:00:21.1]} 44... Qg7
{[%clk 0:00:08.6]} 45. Rcxc2 {[%clk 0:00:15.6]} 45... Rxc2 {[%clk 0:00:08.7]}
46. Rxc2 {[%clk 0:00:16.7]} 46... Qxf7 {[%clk 0:00:07.7]} 47. exf7 {[%clk
0:00:17.9]} 47... Kg7 {[%clk 0:00:09.1]} 48. Rc7 {[%clk 0:00:19.3]} 48... a5
{[%clk 0:00:08.8]} 49. Rb7 {[%clk 0:00:20.6]} 49... Rf6 {[%clk 0:00:09]} 50. g4
{[%clk 0:00:21.4]} 50... Rxf7 {[%clk 0:00:07.3]} 51. Rxb6 {[%clk 0:00:22.1]}
51... Rf4 {[%clk 0:00:08.6]} 52. gxh5 {[%clk 0:00:22]} 52... gxh5 {[%clk
0:00:10.5]} 53. Rb5 {[%clk 0:00:23.5]} 53... Rxa4 {[%clk 0:00:11.2]} 54. Rxh5
{[%clk 0:00:24.4]} 54... Kg6 {[%clk 0:00:12.8]} 55. Rg5+ {[%clk 0:00:25]} 55...
Kf6 {[%clk 0:00:14.2]} 56. Kg3 {[%clk 0:00:26.4]} 56... Ra1 {[%clk 0:00:15.2]}
57. Rb5 {[%clk 0:00:24.1]} 57... a4 {[%clk 0:00:16.5]} 58. Kg4 {[%clk 0:00:25]}
58... a3 {[%clk 0:00:18]} 59. Kh5 {[%clk 0:00:26.4]} 59... a2 {[%clk 0:00:18.2]}
60. Ra5 {[%clk 0:00:27.7]} 60... Kg7 {[%clk 0:00:18.9]} 61. Ra7+ {[%clk
0:00:27.9]} 61... Kf6 {[%clk 0:00:20]} 62. Ra6+ {[%clk 0:00:27.9]} 62... Kf5
{[%clk 0:00:18.1]} 1/2-1/2

[Event "*** Titled Tuesday Blitz"]
[Site "Chess.com"]
[Date "2019.03.05"]
[Round "7"]
[White "KhalilMousavi77"]
[Black "Supernotar"]
[Result "1-0"]
[WhiteElo "2692"]
[BlackElo "2528"]
[TimeControl "180+2"]
[EndTime "14:41:10 PST"]
[Termination "KhalilMousavi77 won by checkmate"]

1. c4 {[%clk 0:03:01.8]} 1... c5 {[%clk 0:03:00.5]} 2. Nc3 {[%clk 0:03:01.9]}
2... Nc6 {[%clk 0:03:01.4]} 3. g3 {[%clk 0:03:02.6]} 3... g6 {[%clk 0:03:02.6]}
4. Bg2 {[%clk 0:03:04.1]} 4... Bg7 {[%clk 0:03:04.1]} 5. e4 {[%clk 0:03:04.9]}
5... e6 {[%clk 0:03:05.2]} 6. Nge2 {[%clk 0:03:05.3]} 6... Nge7 {[%clk
0:03:06.4]} 7. O-O {[%clk 0:03:06.5]} 7... O-O {[%clk 0:03:07.4]} 8. d3 {[%clk
0:03:08.1]} 8... d6 {[%clk 0:03:05.6]} 9. Be3 {[%clk 0:03:08]} 9... Nd4 {[%clk
0:03:06.7]} 10. a3 {[%clk 0:03:06.2]} 10... Nec6 {[%clk 0:03:07.1]} 11. Rb1
{[%clk 0:03:06.8]} 11... a5 {[%clk 0:03:07.8]} 12. h3 {[%clk 0:03:06.7]} 12...
Rb8 {[%clk 0:03:04.9]} 13. f4 {[%clk 0:03:00.8]} 13... Bd7 {[%clk 0:02:26.7]}
14. Kh2 {[%clk 0:02:45]} 14... Qe7 {[%clk 0:02:05.2]} 15. g4 {[%clk 0:02:34.9]}
15... f5 {[%clk 0:02:05.7]} 16. exf5 {[%clk 0:02:24.1]} 16... gxf5 {[%clk
0:02:06.5]} 17. g5 {[%clk 0:02:24.5]} 17... Nxe2 {[%clk 0:01:35.5]} 18. Qxe2
{[%clk 0:02:12.3]} 18... Nd4 {[%clk 0:01:35.6]} 19. Qd2 {[%clk 0:01:50.8]} 19...
b5 {[%clk 0:01:29.1]} 20. Bxd4 {[%clk 0:01:11.4]} 20... cxd4 {[%clk 0:01:07.3]}
21. Nxb5 {[%clk 0:01:08.6]} 21... Bxb5 {[%clk 0:01:08.1]} 22. cxb5 {[%clk
0:01:10.5]} 22... Rxb5 {[%clk 0:01:08.6]} 23. b4 {[%clk 0:01:10.9]} 23... axb4
{[%clk 0:01:03.7]} 24. a4 {[%clk 0:01:05.7]} 24... Rc5 {[%clk 0:00:56.9]} 25.
Rxb4 {[%clk 0:01:06.5]} 25... e5 {[%clk 0:00:54.7]} 26. Qa2+ {[%clk 0:01:05.2]}
26... Kh8 {[%clk 0:00:54.1]} 27. Rb7 {[%clk 0:01:03.1]} 27... Rc7 {[%clk
0:00:47.7]} 28. Rxc7 {[%clk 0:00:51.7]} 28... Qxc7 {[%clk 0:00:47.9]} 29. a5
{[%clk 0:00:53.3]} 29... e4 {[%clk 0:00:22.5]} 30. dxe4 {[%clk 0:00:50.4]} 30...
fxe4 {[%clk 0:00:23.6]} 31. Bxe4 {[%clk 0:00:50.9]} 31... d5 {[%clk 0:00:23]}
32. Qxd5 {[%clk 0:00:43.7]} 32... Rxf4 {[%clk 0:00:22.1]} 33. Rxf4 {[%clk
0:00:34.1]} 33... Qxf4+ {[%clk 0:00:22.7]} 34. Kg2 {[%clk 0:00:35.6]} 34... Qd2+
{[%clk 0:00:22.5]} 35. Kg3 {[%clk 0:00:22.3]} 35... Qe1+ {[%clk 0:00:18.6]} 36.
Kg4 {[%clk 0:00:23.1]} 36... Qg1+ {[%clk 0:00:13.3]} 37. Kf5 {[%clk 0:00:22.5]}
37... Qf2+ {[%clk 0:00:13.7]} 38. Bf3 {[%clk 0:00:19.4]} 38... Qc2+ {[%clk
0:00:11.4]} 39. Kf4 {[%clk 0:00:19.7]} 39... Qc7+ {[%clk 0:00:10.2]} 40. Kg4
{[%clk 0:00:21]} 40... Be5 {[%clk 0:00:06.9]} 41. a6 {[%clk 0:00:18]} 41... Qc8+
{[%clk 0:00:07.5]} 42. Kh4 {[%clk 0:00:17.9]} 42... Qf5 {[%clk 0:00:04.5]} 43.
Qd8+ {[%clk 0:00:15.1]} 43... Kg7 {[%clk 0:00:05.9]} 44. Qe7+ {[%clk 0:00:15.5]}
44... Kh8 {[%clk 0:00:06.1]} 45. a7 {[%clk 0:00:11.5]} 45... Qf4+ {[%clk
0:00:06.8]} 46. Bg4 {[%clk 0:00:11.5]} 46... h6 {[%clk 0:00:05.2]} 47. a8=Q+
{[%clk 0:00:11.9]} 47... Bb8 {[%clk 0:00:06.3]} 48. Qe8+ {[%clk 0:00:11]} 48...
Kh7 {[%clk 0:00:06.8]} 49. Qb7+ {[%clk 0:00:11.9]} 49... Bc7 {[%clk 0:00:07.9]}
50. Qbe4+ {[%clk 0:00:12.8]} 50... Qxe4 {[%clk 0:00:07.9]} 51. Qxe4+ {[%clk
0:00:14.7]} 51... Kh8 {[%clk 0:00:09.2]} 52. gxh6 {[%clk 0:00:13.7]} 52... Bd8+
{[%clk 0:00:07.8]} 53. Kh5 {[%clk 0:00:14.7]} 53... Bf6 {[%clk 0:00:08.2]} 54.
Kg6 {[%clk 0:00:15.7]} 54... Be7 {[%clk 0:00:07.7]} 55. Qxe7 {[%clk 0:00:15.6]}
55... d3 {[%clk 0:00:08.3]} 56. Qg7# {[%clk 0:00:17.5]} 1-0

[Event "*** Titled Tuesday Blitz"]
[Site "Chess.com"]
[Date "2019.03.05"]
[Round "7"]
[White "almaguerjm"]
[Black "Romn69"]
[Result "1-0"]
[WhiteElo "2314"]
[BlackElo "2225"]
[TimeControl "180+2"]
[EndTime "14:41:22 PST"]
[Termination "almaguerjm won by resignation"]

1. d4 {[%clk 0:03:01.2]} 1... Nf6 {[%clk 0:02:59.3]} 2. c4 {[%clk 0:03:00]} 2...
e6 {[%clk 0:02:59.8]} 3. Nf3 {[%clk 0:02:59.9]} 3... d5 {[%clk 0:03:00.6]} 4. g3
{[%clk 0:03:00.3]} 4... dxc4 {[%clk 0:03:00.9]} 5. Bg2 {[%clk 0:02:59.2]} 5...
c5 {[%clk 0:03:01.7]} 6. O-O {[%clk 0:03:00.2]} 6... Nc6 {[%clk 0:03:02.7]} 7.
e3 {[%clk 0:02:51.3]} 7... cxd4 {[%clk 0:02:46]} 8. Nxd4 {[%clk 0:02:49]} 8...
Nxd4 {[%clk 0:02:45.3]} 9. exd4 {[%clk 0:02:50.9]} 9... Be7 {[%clk 0:02:36.7]}
10. Na3 {[%clk 0:02:41.2]} 10... Bxa3 {[%clk 0:02:29.9]} 11. Qa4+ {[%clk
0:02:41.1]} 11... Bd7 {[%clk 0:02:29.8]} 12. Qxa3 {[%clk 0:02:42.2]} 12... Bc6
{[%clk 0:02:21.6]} 13. Bxc6+ {[%clk 0:02:37.4]} 13... bxc6 {[%clk 0:02:21.9]}
14. Bf4 {[%clk 0:02:31.7]} 14... Nd5 {[%clk 0:02:18.8]} 15. Bd6 {[%clk
0:02:32.1]} 15... f6 {[%clk 0:02:18.7]} 16. Rac1 {[%clk 0:02:25]} 16... Kf7
{[%clk 0:02:09.8]} 17. Rxc4 {[%clk 0:02:24.7]} 17... Qd7 {[%clk 0:01:59.5]} 18.
Rfc1 {[%clk 0:02:18.7]} 18... Rhc8 {[%clk 0:01:58.7]} 19. Bc5 {[%clk 0:02:12.6]}
19... a5 {[%clk 0:01:57.5]} 20. Ra4 {[%clk 0:02:06.7]} 20... Qb7 {[%clk
0:01:40.6]} 21. b3 {[%clk 0:01:49.2]} 21... Qb5 {[%clk 0:01:38.8]} 22. Qb2
{[%clk 0:01:42]} 22... Qd3 {[%clk 0:01:05.2]} 23. Qc2 {[%clk 0:01:27.4]} 23...
Qxc2 {[%clk 0:01:04.1]} 24. Rxc2 {[%clk 0:01:29.3]} 24... Ke8 {[%clk 0:01:00.5]}
25. Rac4 {[%clk 0:01:22.5]} 25... Kd7 {[%clk 0:01:00]} 26. h4 {[%clk 0:01:15.1]}
26... h5 {[%clk 0:00:59.4]} 27. Kg2 {[%clk 0:01:15.4]} 27... g6 {[%clk
0:00:59.7]} 28. Ra4 {[%clk 0:01:01.4]} 28... Kc7 {[%clk 0:00:48.9]} 29. Rac4
{[%clk 0:00:55.1]} 29... Kd7 {[%clk 0:00:45.9]} 30. Ba3 {[%clk 0:00:55.9]} 30...
Ra6 {[%clk 0:00:44.2]} 31. Bc1 {[%clk 0:00:56.9]} 31... Nb4 {[%clk 0:00:31.4]}
32. Re2 {[%clk 0:00:56.8]} 32... Nd5 {[%clk 0:00:31.2]} 33. Bd2 {[%clk
0:00:57.1]} 33... Rca8 {[%clk 0:00:28.7]} 34. Ra4 {[%clk 0:00:57.7]} 34... Nb6
{[%clk 0:00:28.5]} 35. Ra3 {[%clk 0:00:58.9]} 35... a4 {[%clk 0:00:28.2]} 36.
bxa4 {[%clk 0:00:54.9]} 36... Rxa4 {[%clk 0:00:28.2]} 37. Rb3 {[%clk 0:00:56.2]}
37... Nd5 {[%clk 0:00:25.8]} 38. Rb7+ {[%clk 0:00:56.7]} 38... Kd6 {[%clk
0:00:26.5]} 39. Rg7 {[%clk 0:00:55.5]} 39... Rxd4 {[%clk 0:00:20.3]} 40. Kh2
{[%clk 0:00:47.2]} 40... e5 {[%clk 0:00:16.2]} 41. Bc1 {[%clk 0:00:39.5]} 41...
Rc4 {[%clk 0:00:10]} 42. Bb2 {[%clk 0:00:40]} 42... Ke6 {[%clk 0:00:08.7]} 43.
a3 {[%clk 0:00:35]} 43... Rb8 {[%clk 0:00:07.1]} 44. Rxg6 {[%clk 0:00:35.1]}
44... Kf5 {[%clk 0:00:08]} 45. Rh6 {[%clk 0:00:35.5]} 45... Rb3 {[%clk 0:00:07]}
46. Rxh5+ {[%clk 0:00:35.3]} 46... Kg6 {[%clk 0:00:08]} 47. Rh8 {[%clk
0:00:36.9]} 47... Nb6 {[%clk 0:00:05.6]} 48. Rb8 {[%clk 0:00:33.5]} 48... c5
{[%clk 0:00:04.3]} 49. Rd2 {[%clk 0:00:25.2]} 49... Re4 {[%clk 0:00:03.4]} 50.
Rb7 {[%clk 0:00:19.9]} 50... c4 {[%clk 0:00:03.8]} 51. Bc1 {[%clk 0:00:19.6]}
51... c3 {[%clk 0:00:03.9]} 52. Rd6 {[%clk 0:00:20.5]} 52... Rb1 {[%clk
0:00:04.3]} 53. Be3 {[%clk 0:00:21.2]} 53... Nc4 {[%clk 0:00:04.9]} 54. Rxb1
{[%clk 0:00:21.2]} 54... Nxd6 {[%clk 0:00:03]} 55. Rc1 {[%clk 0:00:22.4]} 55...
Rc4 {[%clk 0:00:03.2]} 56. a4 {[%clk 0:00:22.2]} 56... c2 {[%clk 0:00:03]} 57.
g4 {[%clk 0:00:22.6]} 57... Ne4 {[%clk 0:00:02.3]} 58. h5+ {[%clk 0:00:23.9]}
58... Kh7 {[%clk 0:00:02.6]} 59. a5 {[%clk 0:00:22.1]} 59... Nd6 {[%clk
0:00:04.5]} 60. a6 {[%clk 0:00:21.6]} 60... Nc8 {[%clk 0:00:05.5]} 61. a7 {[%clk
0:00:22.7]} 61... Ra4 {[%clk 0:00:06.3]} 62. Rxc2 {[%clk 0:00:23.7]} 62... Nxa7
{[%clk 0:00:08.2]} 63. Rc7+ {[%clk 0:00:24.9]} 63... Kg8 {[%clk 0:00:08.8]} 64.
Rxa7 {[%clk 0:00:26.8]} 1-0

[Event "*** Titled Tuesday Blitz"]
[Site "Chess.com"]
[Date "2019.03.05"]
[Round "7"]
[White "vugarrasulov"]
[Black "GeorgMeier"]
[Result "1-0"]
[WhiteElo "2784"]
[BlackElo "2834"]
[TimeControl "180+2"]
[EndTime "14:41:25 PST"]
[Termination "vugarrasulov won by resignation"]

1. e4 {[%clk 0:03:01.9]} 1... e6 {[%clk 0:02:58.5]} 2. d4 {[%clk 0:03:02.5]}
2... d5 {[%clk 0:02:59.7]} 3. Nd2 {[%clk 0:03:03.6]} 3... dxe4 {[%clk
0:03:00.8]} 4. Nxe4 {[%clk 0:03:05.5]} 4... Nd7 {[%clk 0:03:02.2]} 5. g3 {[%clk
0:03:06.4]} 5... Be7 {[%clk 0:03:02.5]} 6. Bg2 {[%clk 0:03:06.9]} 6... Ngf6
{[%clk 0:03:04]} 7. Nxf6+ {[%clk 0:03:05.5]} 7... Bxf6 {[%clk 0:03:05.5]} 8. Ne2
{[%clk 0:03:04.2]} 8... O-O {[%clk 0:03:05]} 9. O-O {[%clk 0:03:04.4]} 9... e5
{[%clk 0:03:06.3]} 10. Be3 {[%clk 0:03:02.6]} 10... exd4 {[%clk 0:03:03.9]} 11.
Bxd4 {[%clk 0:03:03]} 11... c6 {[%clk 0:03:00.6]} 12. c3 {[%clk 0:02:49.8]}
12... h6 {[%clk 0:02:55.9]} 13. Re1 {[%clk 0:02:46.4]} 13... Re8 {[%clk
0:02:37.1]} 14. Qb3 {[%clk 0:02:38.1]} 14... Bxd4 {[%clk 0:02:21.6]} 15. Nxd4
{[%clk 0:02:40]} 15... Nf6 {[%clk 0:02:17.8]} 16. h3 {[%clk 0:02:34.5]} 16...
Qb6 {[%clk 0:01:47.8]} 17. Rxe8+ {[%clk 0:02:29.8]} 17... Nxe8 {[%clk
0:01:48.7]} 18. Re1 {[%clk 0:02:31.2]} 18... Nf6 {[%clk 0:01:40.5]} 19. Re7
{[%clk 0:02:17.3]} 19... Qxb3 {[%clk 0:01:34.9]} 20. Nxb3 {[%clk 0:02:14.6]}
20... Kf8 {[%clk 0:01:28.6]} 21. Re1 {[%clk 0:02:10.2]} 21... Rb8 {[%clk
0:01:18.6]} 22. a4 {[%clk 0:01:59.4]} 22... Be6 {[%clk 0:01:06.6]} 23. Nc5
{[%clk 0:01:59.6]} 23... Ke7 {[%clk 0:01:07.1]} 24. a5 {[%clk 0:01:53.1]} 24...
Nd7 {[%clk 0:01:02.3]} 25. Nxe6 {[%clk 0:01:46.2]} 25... fxe6 {[%clk 0:01:03.1]}
26. h4 {[%clk 0:01:47.7]} 26... Nf8 {[%clk 0:00:56.6]} 27. Kf1 {[%clk
0:01:40.1]} 27... Rc8 {[%clk 0:00:53.6]} 28. Ke2 {[%clk 0:01:39]} 28... Nd7
{[%clk 0:00:48]} 29. Rd1 {[%clk 0:01:25.4]} 29... Nf6 {[%clk 0:00:40.6]} 30. c4
{[%clk 0:01:17.5]} 30... b6 {[%clk 0:00:32.5]} 31. axb6 {[%clk 0:01:13.6]} 31...
axb6 {[%clk 0:00:34.4]} 32. Ra1 {[%clk 0:01:14.8]} 32... Kd6 {[%clk 0:00:34.3]}
33. b4 {[%clk 0:01:10]} 33... Nd7 {[%clk 0:00:21]} 34. f4 {[%clk 0:01:03.6]}
34... Re8 {[%clk 0:00:18.9]} 35. Rd1+ {[%clk 0:00:48.4]} 35... Kc7 {[%clk
0:00:19.3]} 36. Ra1 {[%clk 0:00:49.6]} 36... Kd6 {[%clk 0:00:20.2]} 37. Ke3
{[%clk 0:00:45.9]} 37... Re7 {[%clk 0:00:19.6]} 38. g4 {[%clk 0:00:36.5]} 38...
Nf6 {[%clk 0:00:16.7]} 39. g5 {[%clk 0:00:33.4]} 39... hxg5 {[%clk 0:00:17.4]}
40. hxg5 {[%clk 0:00:35.3]} 40... Nd7 {[%clk 0:00:18.9]} 41. Be4 {[%clk
0:00:33.4]} 41... Re8 {[%clk 0:00:19.7]} 42. Ra6 {[%clk 0:00:29.5]} 42... Rh8
{[%clk 0:00:18.3]} 43. c5+ {[%clk 0:00:30.3]} 43... bxc5 {[%clk 0:00:18.5]} 44.
Rxc6+ {[%clk 0:00:30.8]} 44... Ke7 {[%clk 0:00:19.6]} 45. bxc5 {[%clk
0:00:32.4]} 45... Rh3+ {[%clk 0:00:19]} 46. Bf3 {[%clk 0:00:29.4]} 46... Rh2
{[%clk 0:00:18.6]} 47. Bg4 {[%clk 0:00:26.2]} 47... Rc2 {[%clk 0:00:14.8]} 48.
Rxe6+ {[%clk 0:00:27]} 48... Kf8 {[%clk 0:00:16]} 49. c6 {[%clk 0:00:26.8]}
49... Nb6 {[%clk 0:00:15.2]} 50. Kd4 {[%clk 0:00:25.2]} 50... Rc4+ {[%clk
0:00:09.3]} 51. Ke5 {[%clk 0:00:26.4]} 51... Nc8 {[%clk 0:00:10.5]} 52. Bf3
{[%clk 0:00:19.4]} 52... Rc3 {[%clk 0:00:10.9]} 53. Bd5 {[%clk 0:00:19.9]} 53...
Rc1 {[%clk 0:00:10]} 54. f5 {[%clk 0:00:21]} 54... Re1+ {[%clk 0:00:10.8]} 55.
Kd4 {[%clk 0:00:21.5]} 55... Rd1+ {[%clk 0:00:11.6]} 56. Kc5 {[%clk 0:00:22.8]}
56... Rc1+ {[%clk 0:00:12.8]} 57. Bc4 {[%clk 0:00:24.2]} 57... Rf1 {[%clk
0:00:14.4]} 58. f6 {[%clk 0:00:25.1]} 58... Rf5+ {[%clk 0:00:15.3]} 59. Bd5
{[%clk 0:00:23.6]} 59... Rxg5 {[%clk 0:00:15.7]} 60. c7 {[%clk 0:00:22.7]} 60...
gxf6 {[%clk 0:00:14.3]} 61. Kc6 {[%clk 0:00:23.2]} 61... Rg1 {[%clk 0:00:06.9]}
62. Rxf6+ {[%clk 0:00:24.3]} 62... Ke7 {[%clk 0:00:07.8]} 63. Re6+ {[%clk
0:00:23.1]} 63... Kf8 {[%clk 0:00:09.1]} 64. Kd7 {[%clk 0:00:23.9]} 64... Na7
{[%clk 0:00:09.6]} 65. Re8+ {[%clk 0:00:25]} 1-0